fUSD/lending_fUSD_20241221
["ID","MTS","AMOUNT","RATE_DAILY","PERIOD"]
[346161188,1734761452156,-928.1,0.00021669,2]
[346161189,1734761452165,-500.0,0.00021669,2]
[346161190,1734761452175,-1302.53,0.00021669,2]
[346161191,1734761452184,-500.0,0.00021669,2]
[346161192,1734761452194,-504.19,0.00021669,2]
[346161193,1734761452203,-9631.81,0.00021669,2]
[346161194,1734761452214,-2063.0,0.00021669,2]
[346161195,1734761452224,-500.0,0.00021669,2]
[346161196,1734761452234,-500.0,0.00021669,2]
[346161197,1734761452243,-1197.08,0.00021669,2]
[346161198,1734761452253,-500.0,0.00021669,2]
[346161199,1734761452263,-1793.57,0.00021669,2]
[346161200,1734761452273,-500.0,0.00021669,2]
[346161201,1734761452282,-700.13,0.00021669,2]
[346161202,1734761452292,-1570.1,0.00021669,2]
[346161203,1734761452302,-500.0,0.00021669,2]
[346161204,1734761452311,-500.0,0.00021669,2]
[346161205,1734761452321,-935.09,0.00021669,2]
[346161206,1734761452330,-500.0,0.00021669,2]
[346161207,1734761452340,-2307.18,0.00021669,2]
[346161208,1734761452349,-1016.09,0.00021669,2]
[346161209,1734761452358,-500.0,0.00021669,2]
[346161210,1734761452368,-500.0,0.00021669,2]
[346161211,1734761452377,-910.97,0.00021669,2]
[346161212,1734761452386,-500.0,0.00021669,2]
[346161213,1734761452395,-613.49,0.00021669,2]
[346161214,1734761452405,-512.95855741,0.00021669,2]
[346161215,1734761452414,-2889.83,0.00021669,2]
[346161216,1734761452423,-500.0,0.00021669,2]
[346161217,1734761452432,-500.0,0.00021669,2]
[346161218,1734761452443,-1343.78,0.00021669,2]
[346161219,1734761452452,-500.0,0.00021669,2]
[346161220,1734761452461,-500.0,0.00021669,2]
[346161221,1734761452471,-500.0,0.00021669,2]
[346161222,1734761452479,-4095.86,0.00021669,2]
[346161223,1734761452488,-373.1899315,0.00021669,2]
[346161224,1734761452497,-500.0,0.00021669,2]
[346161225,1734761452506,-500.0,0.00021669,2]
[346161226,1734761452516,-500.0,0.00021669,2]
[346161227,1734761452526,-9688.5,0.00021669,2]
[346161228,1734761452538,-500.0,0.00021669,2]
[346161229,1734761452547,-500.0,0.00021669,2]
[346161230,1734761452556,-1265.61,0.00021669,2]
[346161231,1734761452566,-500.0,0.00021669,2]
[346161232,1734761452578,-2651.16,0.00021669,2]
[346161233,1734761452587,-632.73,0.00021669,2]
[346161234,1734761452596,-1107.82,0.00021669,2]
[346161235,1734761452606,-500.0,0.00021669,2]
[346161236,1734761452616,-571.4,0.00021669,2]
[346161237,1734761452625,-500.0,0.00021669,2]
[346161238,1734761452635,-500.0,0.00021669,2]
[346161239,1734761452644,-500.0,0.00021669,2]
[346161240,1734761452653,-500.0,0.00021669,2]
[346161241,1734761452663,-1996.02,0.00021669,2]
[346161242,1734761452672,-595.37643371,0.00021669,2]
[346161243,1734761452683,-500.0,0.00021669,2]
[346161244,1734761452693,-500.0,0.00021669,2]
[346161245,1734761452702,-2547.76,0.00021669,2]
[346161246,1734761452711,-500.0,0.00021669,2]
[346161247,1734761452720,-500.0,0.00021669,2]
[346161248,1734761452730,-500.0,0.0002167,2]
[346161249,1734761452740,-1008.64,0.0002167,2]
[346161250,1734761452749,-500.0,0.0002167,2]
[346161251,1734761452759,-500.0,0.0002167,2]
[346161252,1734761452768,-646.75,0.0002167,2]
[346161253,1734761452778,-774.93,0.0002167,2]
[346161254,1734761452787,-845.55,0.0002167,2]
[346161255,1734761452796,-500.0,0.0002167,2]
[346161256,1734761452805,-743.47,0.0002167,2]
[346161257,1734761452814,-1000.0,0.0002167,30]
[346161258,1734761452823,-872.78,0.0002167,2]
[346161259,1734761452832,-1113.48,0.0002167,2]
[346161260,1734761452842,-615.16,0.0002167,2]
[346161261,1734761452851,-500.0,0.0002167,2]
[346161262,1734761452860,-1145.27,0.0002167,2]
[346161263,1734761452869,-579.46,0.0002167,2]
[346161264,1734761452880,-919.62,0.0002167,2]
[346161265,1734761452889,-819.76,0.0002167,2]
[346161266,1734761452898,-829.46,0.0002167,2]
[346161267,1734761452908,-500.0,0.0002167,2]
[346161268,1734761452917,-500.0,0.0002167,2]
[346161269,1734761452927,-555.99,0.0002167,2]
[346161270,1734761452937,-576.85,0.0002167,2]
[346161271,1734761452946,-500.0,0.0002167,2]
[346161272,1734761452955,-933.2,0.0002167,2]
[346161273,1734761452964,-150.0,0.0002167,2]
[346161274,1734761452973,-660.77,0.0002167,2]
[346161275,1734761452981,-588.62,0.0002167,2]
[346161276,1734761452991,-692.14,0.0002167,2]
[346161277,1734761452999,-764.01,0.0002167,2]
[346161278,1734761453011,-943.24,0.0002167,2]
[346161279,1734761453020,-1058.48,0.0002167,2]
[346161280,1734761453030,-500.0,0.0002167,2]
[346161281,1734761453039,-500.0,0.0002167,2]
[346161282,1734761453049,-500.0,0.0002167,2]
[346161283,1734761453059,-500.0,0.0002167,2]
[346161284,1734761453068,-2139.52,0.0002167,2]
[346161285,1734761453078,-1221.06,0.0002167,2]
[346161286,1734761453087,-500.0,0.0002167,2]
[346161287,1734761453097,-7875.05,0.0002167,2]
[346161288,1734761453107,-713.81,0.0002167,2]
[346161289,1734761453116,-4669.9,0.0002167,2]
[346161290,1734761453125,-836.26,0.0002167,2]
[346161291,1734761453135,-874.25,0.0002167,2]
[346161292,1734761453144,-1654.81,0.0002167,2]
[346161293,1734761453153,-1029.59,0.0002167,2]
[346161294,1734761453163,-1063.25,0.0002167,2]
[346161295,1734761453172,-500.0,0.0002167,2]
[346161296,1734761453181,-2065.93,0.0002167,2]
[346161297,1734761453191,-1203.48,0.0002167,2]
[346161298,1734761453200,-3940.92,0.0002167,2]
[346161299,1734761453209,-3079.47,0.0002167,2]
[346161300,1734761453219,-950.38,0.0002167,2]
[346161301,1734761453228,-500.0,0.0002167,2]
[346161302,1734761453238,-500.0,0.0002167,2]
[346161303,1734761453247,-500.0,0.0002167,2]
[346161304,1734761453256,-500.0,0.0002167,2]
[346161305,1734761453266,-1046.79,0.0002167,2]
[346161306,1734761453276,-500.0,0.0002167,2]
[346161307,1734761453284,-625.86,0.0002167,2]
[346161308,1734761453293,-654.64,0.0002167,2]
[346161309,1734761453303,-986.97,0.0002167,2]
[346161310,1734761453311,-1450.46,0.0002167,2]
[346161311,1734761453321,-500.0,0.0002167,2]
[346161312,1734761453330,-517.33,0.0002167,2]
[346161313,1734761453339,-3180.17,0.0002167,2]
[346161314,1734761453348,-500.0,0.0002167,2]
[346161315,1734761453357,-500.0,0.0002167,2]
[346161316,1734761453366,-1055.22,0.0002167,2]
[346161317,1734761453376,-572.71,0.0002167,2]
[346161318,1734761453386,-500.0,0.0002167,2]
[346161319,1734761453395,-1169.1,0.0002167,2]
[346161320,1734761453405,-3650.45,0.0002167,2]
[346161321,1734761453414,-858.8,0.0002167,2]
[346161322,1734761453423,-1443.33,0.0002167,2]
[346161323,1734761453432,-1001.36,0.0002167,2]
[346161324,1734761453441,-658.26,0.0002167,2]
[346161325,1734761453451,-755.68,0.0002167,2]
[346161326,1734761453460,-1292.58,0.0002167,2]
[346161327,1734761453469,-2276.6,0.0002167,2]
[346161328,1734761453478,-1161.48,0.0002167,2]
[346161329,1734761453487,-500.0,0.0002167,2]
[346161330,1734761453496,-1150.83,0.0002167,2]
[346161331,1734761453505,-500.0,0.0002167,2]
[346161332,1734761453517,-2254.91,0.0002167,2]
[346161333,1734761453526,-1243.88,0.0002167,2]
[346161334,1734761453538,-1861.54,0.0002167,2]
[346161335,1734761453547,-873.16,0.0002167,2]
[346161336,1734761453556,-500.0,0.0002167,2]
[346161337,1734761453565,-3904.28,0.0002167,2]
[346161338,1734761453574,-824.38,0.0002167,2]
[346161339,1734761453583,-500.0,0.0002167,2]
[346161340,1734761453592,-2768.04,0.0002167,2]
[346161341,1734761453602,-500.0,0.0002167,2]
[346161342,1734761453613,-5645.25,0.0002167,2]
[346161343,1734761453624,-500.0,0.0002167,2]
[346161344,1734761453636,-500.0,0.0002167,2]
[346161345,1734761453645,-604.91,0.0002167,2]
[346161346,1734761453654,-2357.18,0.0002167,2]
[346161347,1734761453664,-784.81,0.0002167,2]
[346161348,1734761453673,-1300.35,0.0002167,2]
[346161349,1734761453683,-500.0,0.0002167,2]
[346161350,1734761453692,-933.29,0.0002167,2]
[346161351,1734761453701,-500.0,0.0002167,2]
[346161352,1734761453710,-255.46,0.00021671,2]
[346161353,1734761453719,-500.0,0.00021671,2]
[346161354,1734761453728,-500.0,0.00021671,2]
[346161355,1734761453738,-500.0,0.00021671,2]
[346161356,1734761453748,-500.0,0.00021671,2]
[346161357,1734761453757,-500.0,0.00021671,2]
[346161358,1734761453767,-500.0,0.00021671,2]
[346161359,1734761453777,-500.0,0.00021671,2]
[346161360,1734761453787,-500.0,0.00021671,2]
[346161361,1734761453796,-500.0,0.00021671,2]
[346161362,1734761453805,-500.0,0.00021671,2]
[346161363,1734761453814,-500.0,0.00021671,2]
[346161364,1734761453823,-500.0,0.00021671,2]
[346161365,1734761453833,-500.0,0.00021671,2]
[346161366,1734761453842,-500.0,0.00021671,2]
[346161367,1734761453851,-500.0,0.00021671,2]
[346161368,1734761453861,-500.0,0.00021671,2]
[346161369,1734761453870,-500.0,0.00021671,2]
[346161370,1734761453879,-603.41868898,0.00021671,2]
[346161371,1734761453888,-500.0,0.00021671,2]
[346161372,1734761453897,-500.0,0.00021671,2]
[346161373,1734761453907,-500.0,0.00021671,2]
[346161374,1734761453916,-500.0,0.00021671,2]
[346161375,1734761453925,-500.0,0.00021671,2]
[346161376,1734761453935,-500.0,0.00021671,2]
[346161377,1734761453944,-500.0,0.00021671,2]
[346161378,1734761453953,-500.0,0.00021671,2]
[346161379,1734761453962,-500.0,0.00021671,2]
[346161380,1734761453971,-500.0,0.00021671,2]
[346161381,1734761453981,-505.18308164,0.00021671,2]
[346161382,1734761453990,-500.0,0.00021671,2]
[346161383,1734761453999,-500.0,0.00021671,2]
[346161384,1734761454010,-516.98938922,0.00021671,2]
[346161385,1734761454019,-500.0,0.00021671,2]
[346161386,1734761454029,-500.0,0.00021671,2]
[346161387,1734761454038,-500.0,0.00021671,2]
[346161388,1734761454047,-568.31494655,0.00021671,2]
[346161389,1734761454056,-500.0,0.00021671,2]
[346161390,1734761454066,-505.33967182,0.00021671,2]
[346161391,1734761454075,-500.0,0.00021671,2]
[346161392,1734761454084,-500.0,0.00021671,2]
[346161393,1734761454094,-500.0,0.00021671,2]
[346161394,1734761454103,-500.0,0.00021671,2]
[346161395,1734761454113,-500.0,0.00021671,2]
[346161396,1734761454123,-500.0,0.00021671,2]
[346161397,1734761454132,-500.0,0.00021671,2]
[346161398,1734761454141,-500.0,0.00021671,2]
[346161399,1734761454151,-500.0,0.00021671,2]
[346161400,1734761454160,-500.0,0.00021671,2]
[346161401,1734761454170,-500.0,0.00021671,2]
[346161402,1734761454179,-500.0,0.00021671,2]
[346161403,1734761454189,-514.0812253,0.00021671,2]
[346161404,1734761454198,-500.0,0.00021671,2]
[346161405,1734761454207,-500.0,0.00021671,2]
[346161406,1734761454217,-500.0,0.00021671,2]
[346161407,1734761454226,-500.0,0.00021671,2]
[346161408,1734761454235,-505.07360981,0.00021671,2]
[346161409,1734761454245,-500.0,0.00021671,2]
[346161410,1734761454255,-500.0,0.00021671,2]
[346161411,1734761454266,-500.0,0.00021671,2]
[346161412,1734761454276,-500.0,0.00021671,2]
[346161413,1734761454285,-500.0,0.00021671,2]
[346161414,1734761454295,-500.0,0.00021671,2]
[346161415,1734761454304,-500.0,0.00021671,2]
[346161416,1734761454314,-500.0,0.00021671,2]
[346161417,1734761454324,-500.0,0.00021671,2]
[346161418,1734761454333,-500.0,0.00021671,2]
[346161419,1734761454343,-364.71346102,0.00021671,2]
[346161420,1734761454352,-500.0,0.00021671,2]
[346161421,1734761454362,-500.0,0.00021671,2]
[346161422,1734761454372,-504.5,0.00021671,2]
[346161423,1734761454382,-500.0,0.00021671,2]
[346161424,1734761454392,-500.0,0.00021671,2]
[346161425,1734761454401,-500.0,0.00021671,2]
[346161426,1734761454411,-500.0,0.00021671,2]
[346161427,1734761454421,-873.62,0.00021671,2]
[346161428,1734761454431,-500.0,0.00021671,2]
[346161429,1734761454440,-500.0,0.00021671,2]
[346161430,1734761454450,-500.0,0.00021671,2]
[346161431,1734761454459,-500.0,0.00021671,2]
[346161432,1734761454469,-500.0,0.00021671,2]
[346161433,1734761454478,-500.0,0.00021671,2]
[346161434,1734761454488,-500.0,0.00021671,2]
[346161435,1734761454497,-500.0,0.00021671,2]
[346161436,1734761454510,-500.0,0.00021671,2]
[346161437,1734761454523,-500.0,0.00021671,2]
[346161438,1734761454533,-500.0,0.00021671,2]
[346161439,1734761454542,-500.0,0.00021671,2]
[346161440,1734761454552,-500.0,0.00021671,2]
[346161441,1734761454562,-500.0,0.00021671,2]
[346161442,1734761454571,-500.0,0.00021671,2]
[346161443,1734761454581,-500.0,0.00021671,2]
[346161444,1734761454592,-164.81687288,0.00021671,2]
[346161445,1734761454602,-500.0,0.00021671,2]
[346161446,1734761454612,-515.96,0.00021671,2]
[346161447,1734761454621,-309.99153515,0.00021671,2]
[346161448,1734761454630,-500.0,0.00021671,2]
[346161449,1734761454640,-500.0,0.00021671,2]
[346161450,1734761454649,-500.0,0.00021671,2]
[346161451,1734761454659,-500.0,0.00021671,2]
[346161452,1734761454668,-500.0,0.00021671,2]
[346161453,1734761454678,-500.0,0.00021671,2]
[346161454,1734761454688,-500.0,0.00021671,2]
[346161455,1734761454698,-510.05284592,0.00021671,2]
[346161456,1734761454707,-555.76,0.00021671,2]
[346161457,1734761454717,-500.0,0.00021671,2]
[346161458,1734761454727,-500.0,0.00021671,2]
[346161459,1734761454737,-500.0,0.00021671,2]
[346161460,1734761454747,-500.0,0.00021671,2]
[346161461,1734761454757,-509.36168573,0.00021671,2]
[346161462,1734761454768,-500.0,0.00021671,2]
[346161463,1734761454778,-531.72,0.00021671,2]
[346161464,1734761454787,-500.0,0.00021671,2]
[346161465,1734761454797,-500.0,0.00021671,2]
[346161466,1734761454807,-240.04637518,0.00021671,2]
[346161467,1734761454817,-616.13366607,0.00021671,2]
[346161468,1734761454826,-500.63,0.00021671,2]
[346161469,1734761454836,-500.0,0.00021671,2]
[346161470,1734761454846,-513.05300672,0.00021671,2]
[346161471,1734761454856,-500.0,0.00021671,2]
[346161472,1734761454865,-500.0,0.00021671,2]
[346161473,1734761454875,-500.0,0.00021671,2]
[346161474,1734761454884,-500.0,0.00021671,2]
[346161475,1734761454894,-500.0,0.00021671,2]
[346161476,1734761454904,-500.0,0.00021671,2]
[346161477,1734761454913,-500.0,0.00021671,2]
[346161478,1734761454923,-500.0,0.00021671,2]
[346161479,1734761454932,-500.0,0.00021671,2]
[346161480,1734761454942,-500.0,0.00021671,2]
[346161481,1734761454952,-500.0,0.00021671,2]
[346161482,1734761454961,-500.0,0.00021671,2]
[346161483,1734761454971,-500.0,0.00021671,2]
[346161484,1734761454980,-500.0,0.00021671,2]
[346161485,1734761454990,-500.0,0.00021671,2]
[346161486,1734761455000,-500.0,0.00021671,2]
[346161487,1734761455011,-500.0,0.00021671,2]
[346161488,1734761455021,-513.09224309,0.00021671,2]
[346161489,1734761455031,-500.0,0.00021671,2]
[346161490,1734761455041,-703.74,0.00021671,2]
[346161491,1734761455051,-500.0,0.00021671,2]
[346161492,1734761455060,-500.0,0.00021671,2]
[346161493,1734761455071,-820.42,0.00021671,2]
[346161494,1734761455081,-500.0,0.00021671,2]
[346161495,1734761455092,-500.0,0.00021671,2]
[346161496,1734761455103,-500.0,0.00021671,2]
[346161497,1734761455112,-500.0,0.00021671,2]
[346161498,1734761455121,-500.0,0.00021671,2]
[346161499,1734761455132,-500.0,0.00021671,2]
[346161500,1734761455141,-500.0,0.00021671,2]
[346161501,1734761455151,-500.0,0.00021671,2]
[346161502,1734761455161,-510.70522671,0.00021671,2]
[346161503,1734761455170,-500.0,0.00021671,2]
[346161504,1734761455180,-500.0,0.00021671,2]
[346161505,1734761455190,-500.0,0.00021671,2]
[346161506,1734761455200,-500.0,0.00021671,2]
[346161507,1734761455210,-500.0,0.00021671,2]
[346161508,1734761455220,-500.0,0.00021671,2]
[346161509,1734761455230,-539.37,0.00021671,2]
[346161510,1734761455239,-500.0,0.00021671,2]
[346161511,1734761455249,-500.0,0.00021671,2]
[346161512,1734761455259,-500.0,0.00021671,2]
[346161513,1734761455272,-500.0,0.00021671,2]
[346161514,1734761455282,-500.0,0.00021671,2]
[346161515,1734761455291,-500.0,0.00021671,2]
[346161516,1734761455302,-500.0,0.00021671,2]
[346161517,1734761455311,-500.0,0.00021671,2]
[346161518,1734761455321,-372.56614657,0.00021671,2]
[346161519,1734761455330,-500.0,0.00021671,2]
[346161520,1734761455340,-500.0,0.00021671,2]
[346161521,1734761455350,-500.0,0.00021671,2]
[346161522,1734761455359,-500.0,0.00021671,2]
[346161523,1734761455368,-500.0,0.00021671,2]
[346161524,1734761455378,-500.0,0.00021671,2]
[346161525,1734761455388,-500.0,0.00021671,2]
[346161526,1734761455398,-500.0,0.00021671,2]
[346161527,1734761455407,-624.43480108,0.00021671,2]
[346161528,1734761455417,-500.0,0.00021671,2]
[346161529,1734761455427,-764.83,0.00021671,2]
[346161530,1734761455437,-370.88876379,0.00021671,2]
[346161531,1734761455446,-500.0,0.00021671,2]
[346161532,1734761455457,-595.80431462,0.00021671,2]
[346161533,1734761455467,-500.0,0.00021671,2]
[346161534,1734761455476,-500.0,0.00021671,2]
[346161535,1734761455486,-500.0,0.00021671,2]
[346161536,1734761455496,-500.0,0.00021671,2]
[346161537,1734761455506,-500.0,0.00021671,2]
[346161538,1734761455518,-500.0,0.00021671,2]
[346161539,1734761455528,-500.0,0.00021671,2]
[346161540,1734761455540,-514.49,0.00021671,2]
[346161541,1734761455550,-299.08753253,0.00021671,2]
[346161542,1734761455560,-500.0,0.00021671,2]
[346161543,1734761455579,-512.8289814,0.00021671,2]
[346161544,1734761455589,-500.0,0.00021671,2]
[346161545,1734761455599,-500.0,0.00021671,2]
[346161546,1734761455612,-500.0,0.00021671,2]
[346161547,1734761455622,-467.82309013,0.00021671,2]
[346161548,1734761455632,-500.0,0.00021671,2]
[346161549,1734761455642,-500.0,0.00021671,2]
[346161550,1734761455651,-500.0,0.00021671,2]
[346161551,1734761455661,-500.0,0.00021671,2]
[346161552,1734761455671,-500.0,0.00021671,2]
[346161553,1734761455681,-500.0,0.00021671,2]
[346161554,1734761455691,-500.0,0.00021671,2]
[346161555,1734761455700,-500.0,0.00021671,2]
[346161556,1734761455710,-500.0,0.00021671,2]
[346161557,1734761455720,-500.0,0.00021671,2]
[346161558,1734761455730,-500.0,0.00021671,2]
[346161559,1734761455740,-500.0,0.00021671,2]
[346161560,1734761455750,-404.16191653,0.00021671,2]
[346161561,1734761456433,-95.83808347,0.00021671,2]
[346161562,1734761456442,-500.0,0.00021671,2]
[346161563,1734761456451,-500.0,0.00021671,2]
[346161564,1734761456462,-500.0,0.00021671,2]
[346161565,1734761456471,-500.0,0.00021673,2]
[346161566,1734761456479,-500.0,0.00021673,2]
[346161567,1734761456488,-507.12427976,0.00021692,2]
[346161568,1734761456497,-500.0,0.00021692,2]
[346161569,1734761456506,-500.0,0.00021692,2]
[346161570,1734761456520,-500.0,0.00021692,2]
[346161571,1734761456530,-500.0,0.00021692,2]
[346161572,1734761456539,-341.0510038,0.00021692,2]
[346161573,1734761456549,-500.0,0.00021692,2]
[346161574,1734761456559,-500.0,0.00021692,2]
[346161575,1734761456571,-500.0,0.00021692,2]
[346161576,1734761456580,-500.0,0.00021692,2]
[346161577,1734761456590,-500.0,0.00021692,2]
[346161578,1734761456600,-500.0,0.00021692,2]
[346161579,1734761456611,-500.0,0.00021692,2]
[346161580,1734761456621,-500.0,0.00021692,2]
[346161581,1734761456630,-501.13916705,0.00021692,2]
[346161582,1734761456640,-988.83,0.00021692,2]
[346161583,1734761456650,-966.48,0.00021692,2]
[346161584,1734761456660,-910.77,0.00021692,2]
[346161585,1734761456670,-1045.53,0.00021692,2]
[346161586,1734761456680,-1366.96,0.00021692,2]
[346161587,1734761456690,-500.0,0.00021692,2]
[346161588,1734761456699,-500.0,0.00021692,2]
[346161589,1734761456709,-539.05,0.00021692,2]
[346161590,1734761456718,-749.66,0.00021692,2]
[346161591,1734761456727,-693.48,0.00021692,2]
[346161592,1734761456737,-500.0,0.00021692,2]
[346161593,1734761456746,-500.0,0.00021692,2]
[346161594,1734761456755,-906.9,0.00021692,2]
[346161595,1734761456767,-743.1,0.00021692,2]
[346161596,1734761456776,-810.87,0.00021692,2]
[346161597,1734761456785,-911.02,0.00021692,2]
[346161598,1734761456795,-540.76,0.00021692,2]
[346161599,1734761456804,-758.47,0.00021692,2]
[346161600,1734761456815,-1188.69,0.00021692,2]
[346161601,1734761456824,-500.0,0.00021692,2]
[346161602,1734761456834,-500.0,0.00021692,2]
[346161603,1734761456843,-500.0,0.00021692,2]
[346161604,1734761456853,-737.85,0.00021692,2]
[346161605,1734761456863,-653.74,0.00021692,2]
[346161606,1734761456872,-912.52,0.00021692,2]
[346161607,1734761456882,-704.0,0.00021692,2]
[346161608,1734761456891,-500.0,0.00021692,2]
[346161609,1734761456901,-500.0,0.00021692,2]
[346161610,1734761456910,-500.0,0.00021692,2]
[346161611,1734761456920,-749.72,0.00021692,2]
[346161612,1734761456929,-500.0,0.00021692,2]
[346161613,1734761456939,-742.94,0.00021692,2]
[346161614,1734761456948,-500.0,0.00021692,2]
[346161615,1734761456959,-580.81,0.00021692,2]
[346161616,1734761456969,-708.91,0.00021692,2]
[346161617,1734761456978,-985.05,0.00021692,2]
[346161618,1734761456987,-745.42,0.00021692,2]
[346161619,1734761456996,-500.0,0.00021692,2]
[346161620,1734761457005,-500.0,0.00021692,2]
[346161621,1734761457016,-815.33,0.00021692,2]
[346161622,1734761457026,-500.0,0.00021692,2]
[346161623,1734761457035,-909.34,0.00021692,2]
[346161624,1734761457045,-634.04,0.00021692,2]
[346161625,1734761457054,-934.54,0.00021692,2]
[346161626,1734761457064,-500.0,0.00021692,2]
[346161627,1734761457073,-500.0,0.00021692,2]
[346161628,1734761457083,-500.0,0.00021692,2]
[346161629,1734761457092,-967.63,0.00021692,2]
[346161630,1734761457102,-817.66,0.00021692,2]
[346161631,1734761457112,-500.0,0.00021692,2]
[346161632,1734761457122,-1164.43,0.00021692,2]
[346161633,1734761457131,-1169.8,0.00021692,2]
[346161634,1734761457141,-858.11,0.00021692,2]
[346161635,1734761457151,-842.33,0.00021692,2]
[346161636,1734761457161,-918.86,0.00021692,2]
[346161637,1734761457170,-653.36,0.00021692,2]
[346161638,1734761457180,-500.0,0.00021692,2]
[346161639,1734761457189,-1445.72,0.00021692,2]
[346161640,1734761457200,-500.0,0.00021695,2]
[346161641,1734761457209,-2175.62642441,0.00021698,2]
[346161642,1734761457219,-200.0,0.000217,7]
[346161643,1734761457229,-150.0,0.00021701,2]
[346161644,1734761457239,-600.0,0.0002171,2]
[346161645,1734761457249,-2000.0,0.00021713,2]
[346161646,1734761457261,-200.0,0.00021713,2]
[346161647,1734761457270,-200.0,0.00021713,2]
[346161648,1734761457279,-2000.0,0.00021713,2]
[346161649,1734761457289,-200.0,0.00021713,2]
[346161650,1734761457298,-200.0,0.00021713,2]
[346161651,1734761457309,-150.0,0.00021721,2]
[346161652,1734761457319,-150.0,0.0002173,2]
[346161653,1734761457329,-185.50967466,0.00021731,2]
[346161654,1734761457340,-150.0,0.00021757,2]
[346161655,1734761457351,-1500.0,0.00021759,2]
[346161656,1734761457364,-601.35762418,0.00021765,2]
[346161657,1734761457374,-2175.62642441,0.00021766,2]
[346161658,1734761457383,-500.0,0.0002177,2]
[346161659,1734761457393,-500.0,0.00021771,2]
[346161660,1734761457402,-988.83,0.00021771,2]
[346161661,1734761457412,-5000.0,0.00021772,2]
[346161662,1734761457423,-500.0,0.00021772,2]
[346161663,1734761457433,-500.0,0.00021772,2]
[346161664,1734761457444,-515.68826467,0.00021772,2]
[346161665,1734761457454,-500.0,0.00021772,2]
[346161666,1734761457464,-500.0,0.00021772,2]
[346161667,1734761457474,-508.02677406,0.00021772,2]
[346161668,1734761457484,-500.0,0.00021772,2]
[346161669,1734761457494,-500.0,0.00021772,2]
[346161670,1734761457503,-501.45165155,0.00021772,2]
[346161671,1734761457515,-500.0,0.00021772,2]
[346161672,1734761457528,-500.0,0.00021772,2]
[346161673,1734761457538,-251.13129861,0.00021772,2]
[346161674,1734761457547,-500.0,0.00021772,2]
[346161675,1734761457557,-500.0,0.00021772,2]
[346161676,1734761457568,-500.0,0.00021772,2]
[346161677,1734761457578,-500.0,0.00021772,2]
[346161678,1734761457587,-500.0,0.00021772,2]
[346161679,1734761457599,-500.0,0.00021772,2]
[346161680,1734761457609,-271.67298701,0.00021772,2]
[346161681,1734761457619,-500.0,0.00021772,2]
[346161682,1734761457629,-509.34962033,0.00021772,2]
[346161683,1734761457639,-500.0,0.00021772,2]
[346161684,1734761457648,-500.0,0.00021772,2]
[346161685,1734761457657,-639.69,0.00021772,2]
[346161686,1734761457667,-500.0,0.00021772,2]
[346161687,1734761457676,-500.0,0.00021772,2]